[Event "Titled Tuesday Blitz August 1 Early 2023"]
[White "Feliz Dotel, Dewar Bienvenido"]
[Black "Ovchinnikov, Vsevolod"]
[WhiteFideId "6402801"]
[BlackFideId "24176842"]
[WhiteElo "2138"]
[BlackElo "2598"]
[Result "0-1"]
[Round "5"]
[TimeControl "180+1"]
[Date "2023.08.01"]
[WhiteClock "0:00:00"]
[BlackClock "0:00:04"]
[Board "156"]

1. d4 {[%clk 0:02:59]}  Nf6 {[%clk 0:02:57]} 2. e3 {[%clk 0:02:58]}  d5 {[%clk 0:02:56]} 3. Nf3 {[%clk 0:02:58]}  g6 {[%clk 0:02:57]} 4. Be2 {[%clk 0:02:58]}  Bg7 {[%clk 0:02:57]} 5. O-O {[%clk 0:02:57]}  O-O {[%clk 0:02:58]} 6. c4 {[%clk 0:02:57]}  c5 {[%clk 0:02:57]} 7. cxd5 {[%clk 0:02:43]}  Nxd5 {[%clk 0:02:51]} 8. dxc5 {[%clk 0:02:41]}  Nc6 {[%clk 0:02:49]} 9. a3 {[%clk 0:02:41]}  a5 {[%clk 0:02:06]} 10. e4 {[%clk 0:02:36]}  Nc7 {[%clk 0:01:49]} 11. Qc2 {[%clk 0:02:30]}  Bg4 {[%clk 0:01:45]} 12. Rd1 {[%clk 0:02:18]}  Qc8 {[%clk 0:01:45]} 13. Be3 {[%clk 0:02:15]}  Ne6 {[%clk 0:01:35]} 14. h3 {[%clk 0:01:30]}  Bxf3 {[%clk 0:01:35]} 15. Bxf3 {[%clk 0:01:31]}  Ncd4 {[%clk 0:01:35]} 16. Bxd4 {[%clk 0:01:31]}  Nxd4 {[%clk 0:01:35]} 17. Qd3 {[%clk 0:01:28]}  Rd8 {[%clk 0:01:15]} 18. Nc3 {[%clk 0:01:22]}  Qxc5 {[%clk 0:01:14]} 19. Qe3 {[%clk 0:01:15]}  e6 {[%clk 0:01:08]} 20. Rac1 {[%clk 0:01:14]}  Qb6 {[%clk 0:00:59]} 21. Na4 {[%clk 0:01:07]}  Qb5 {[%clk 0:00:56]} 22. Nc5 {[%clk 0:00:57]}  Rac8 {[%clk 0:00:31]} 23. a4 {[%clk 0:00:50]}  Qb6 {[%clk 0:00:28]} 24. Nd3 {[%clk 0:00:41]}  Rxc1 {[%clk 0:00:25]} 25. Rxc1 {[%clk 0:00:41]}  Qb3 {[%clk 0:00:22]} 26. Bd1 {[%clk 0:00:32]}  Qb6 {[%clk 0:00:22]} 27. e5 {[%clk 0:00:29]}  h5 {[%clk 0:00:18]} 28. Rb1 {[%clk 0:00:22]}  Qc7 {[%clk 0:00:15]} 29. b4 {[%clk 0:00:19]}  axb4 {[%clk 0:00:14]} 30. Rxb4 {[%clk 0:00:17]}  Nc6 {[%clk 0:00:14]} 31. Rc4 {[%clk 0:00:15]}  Qa5 {[%clk 0:00:09]} 32. Rc5 {[%clk 0:00:10]}  Qa7 {[%clk 0:00:07]} 33. Be2 {[%clk 0:00:06]}  Bf8 {[%clk 0:00:07]} 34. Rc4 {[%clk 0:00:05]}  Qxe3 {[%clk 0:00:07]} 35. fxe3 {[%clk 0:00:06]}  Bg7 {[%clk 0:00:08]} 36. Rc5 {[%clk 0:00:04]}  Ra8 {[%clk 0:00:07]} 37. Bd1 {[%clk 0:00:03]}  Ra7 {[%clk 0:00:06]} 38. Rb5 {[%clk 0:00:03]}  Kf8 {[%clk 0:00:06]} 39. Bf3 {[%clk 0:00:03]}  Nd8 {[%clk 0:00:04]} 40. Nc5 {[%clk 0:00:02]}  Ke7 {[%clk 0:00:03]} 41. Nxb7 {[%clk 0:00:02]}  Rxa4 {[%clk 0:00:03]} 42. Nxd8 {[%clk 0:00:02]}  Kxd8 {[%clk 0:00:04]} 43. Rb8+ {[%clk 0:00:00]}  Ke7 {[%clk 0:00:04]} 0-1


[Site "https://www.chess.com"]

[Event "Titled Tuesday Blitz August 1 Early 2023"]
[White "ATM622"]
[Black "Castella Garcia, Fausto"]
[BlackFideId "3501922"]
[WhiteElo "2528"]
[BlackElo "2395"]
[Result "0-1"]
[Round "5"]
[TimeControl "180+1"]
[Date "2023.08.01"]
[WhiteClock "0:00:00"]
[BlackClock "0:00:02"]
[Board "158"]

1. d4 {[%clk 0:03:00]}  Nf6 {[%clk 0:02:55]} 2. c4 {[%clk 0:02:59]}  e5 {[%clk 0:02:55]} 3. dxe5 {[%clk 0:02:58]}  Ng4 {[%clk 0:02:55]} 4. Nf3 {[%clk 0:02:53]}  Bc5 {[%clk 0:02:55]} 5. e3 {[%clk 0:02:49]}  Nc6 {[%clk 0:02:55]} 6. Nc3 {[%clk 0:02:42]}  O-O {[%clk 0:02:54]} 7. Ne4 {[%clk 0:02:38]}  Bb4+ {[%clk 0:02:53]} 8. Bd2 {[%clk 0:02:33]}  Qe7 {[%clk 0:02:39]} 9. Be2 {[%clk 0:02:20]}  Ngxe5 {[%clk 0:02:34]} 10. Nxe5 {[%clk 0:02:18]}  Bxd2+ {[%clk 0:02:25]} 11. Qxd2 {[%clk 0:02:16]}  Qxe5 {[%clk 0:02:26]} 12. Ng3 {[%clk 0:02:12]}  d6 {[%clk 0:02:26]} 13. O-O {[%clk 0:01:58]}  Re8 {[%clk 0:02:13]} 14. b4 {[%clk 0:01:51]}  Be6 {[%clk 0:01:53]} 15. Rac1 {[%clk 0:01:46]}  a5 {[%clk 0:01:51]} 16. b5 {[%clk 0:01:40]}  Ne7 {[%clk 0:01:50]} 17. Bf3 {[%clk 0:01:30]}  c6 {[%clk 0:01:41]} 18. a4 {[%clk 0:01:27]}  Red8 {[%clk 0:01:24]} 19. Qd4 {[%clk 0:01:24]}  Qxd4 {[%clk 0:01:13]} 20. exd4 {[%clk 0:01:25]}  d5 {[%clk 0:01:11]} 21. c5 {[%clk 0:01:20]}  cxb5 {[%clk 0:01:10]} 22. axb5 {[%clk 0:01:21]}  Bd7 {[%clk 0:01:10]} 23. Rfe1 {[%clk 0:01:15]}  Kf8 {[%clk 0:01:09]} 24. b6 {[%clk 0:01:12]}  a4 {[%clk 0:01:08]} 25. Ra1 {[%clk 0:00:57]}  Be6 {[%clk 0:01:07]} 26. Bd1 {[%clk 0:00:53]}  a3 {[%clk 0:01:03]} 27. Re3 {[%clk 0:00:51]}  Nc6 {[%clk 0:00:57]} 28. Ne2 {[%clk 0:00:49]}  a2 {[%clk 0:00:54]} 29. Bb3 {[%clk 0:00:45]}  Na5 {[%clk 0:00:51]} 30. Bxa2 {[%clk 0:00:36]}  Nc4 {[%clk 0:00:52]} 31. Rc3 {[%clk 0:00:34]}  Ra4 {[%clk 0:00:45]} 32. Rcc1 {[%clk 0:00:28]}  Rda8 {[%clk 0:00:46]} 33. Nc3 {[%clk 0:00:28]}  Ra3 {[%clk 0:00:45]} 34. f4 {[%clk 0:00:19]}  Nd2 {[%clk 0:00:44]} 35. Rc2 {[%clk 0:00:16]}  Nb3 {[%clk 0:00:42]} 36. Rd1 {[%clk 0:00:12]}  Bf5 {[%clk 0:00:40]} 37. Rb2 {[%clk 0:00:11]}  Nxd4 {[%clk 0:00:38]} 38. Rxd4 {[%clk 0:00:07]}  Rxc3 {[%clk 0:00:38]} 39. Bxd5 {[%clk 0:00:04]}  Ra1+ {[%clk 0:00:36]} 40. Kf2 {[%clk 0:00:04]}  Bc8 {[%clk 0:00:29]} 41. c6 {[%clk 0:00:04]}  bxc6 {[%clk 0:00:28]} 42. Bf3 {[%clk 0:00:04]}  Ba6 {[%clk 0:00:15]} 43. Rd6 {[%clk 0:00:02]}  Rac1 {[%clk 0:00:11]} 44. Rd7 {[%clk 0:00:02]}  R1c2+ {[%clk 0:00:07]} 45. Rxc2 {[%clk 0:00:02]}  Rxc2+ {[%clk 0:00:08]} 46. Kg3 {[%clk 0:00:03]}  Rb2 {[%clk 0:00:09]} 47. Rd8+ {[%clk 0:00:02]}  Ke7 {[%clk 0:00:08]} 48. Ra8 {[%clk 0:00:02]}  Rxb6 {[%clk 0:00:07]} 49. Ra7+ {[%clk 0:00:03]}  Kf6 {[%clk 0:00:07]} 50. Bg4 {[%clk 0:00:03]}  Bb7 {[%clk 0:00:06]} 51. Bd7 {[%clk 0:00:03]}  c5 {[%clk 0:00:06]} 52. Ra5 {[%clk 0:00:02]}  Rd6 {[%clk 0:00:02]} 53. Be8 {[%clk 0:00:00]}  Rd3+ {[%clk 0:00:02]} 0-1


[Site "https://www.chess.com"]

[Event "Titled Tuesday Blitz August 1 Early 2023"]
[White "kripri"]
[Black "Velasco, Santiago"]
[BlackFideId "4401328"]
[WhiteElo "2374"]
[BlackElo "2524"]
[Result "0-1"]
[Round "5"]
[TimeControl "180+1"]
[Date "2023.08.01"]
[WhiteClock "0:00:17"]
[BlackClock "0:01:30"]
[Board "159"]

1. e4 {[%clk 0:03:00]}  e5 {[%clk 0:03:00]} 2. Nf3 {[%clk 0:03:00]}  Nc6 {[%clk 0:03:01]} 3. Bc4 {[%clk 0:03:00]}  Bc5 {[%clk 0:03:00]} 4. O-O {[%clk 0:02:59]}  Nf6 {[%clk 0:03:01]} 5. d3 {[%clk 0:03:00]}  d6 {[%clk 0:03:00]} 6. c3 {[%clk 0:02:59]}  a6 {[%clk 0:03:01]} 7. a4 {[%clk 0:02:59]}  Ba7 {[%clk 0:03:01]} 8. Be3 {[%clk 0:02:57]}  Bxe3 {[%clk 0:02:59]} 9. fxe3 {[%clk 0:02:57]}  O-O {[%clk 0:03:00]} 10. Qe1 {[%clk 0:02:55]}  d5 {[%clk 0:02:58]} 11. exd5 {[%clk 0:02:55]}  Nxd5 {[%clk 0:02:58]} 12. e4 {[%clk 0:02:54]}  Nf4 {[%clk 0:02:53]} 13. Qe3 {[%clk 0:02:46]}  Bg4 {[%clk 0:02:37]} 14. g3 {[%clk 0:02:31]}  Nh3+ {[%clk 0:02:33]} 15. Kg2 {[%clk 0:02:30]}  h6 {[%clk 0:02:16]} 16. Nbd2 {[%clk 0:02:19]}  Qd7 {[%clk 0:02:09]} 17. Bd5 {[%clk 0:02:11]}  Rae8 {[%clk 0:02:09]} 18. Nc4 {[%clk 0:02:04]}  Bxf3+ {[%clk 0:02:05]} 19. Qxf3 {[%clk 0:02:03]}  Nd8 {[%clk 0:01:47]} 20. Qf5 {[%clk 0:01:09]}  Qxf5 {[%clk 0:01:45]} 21. Rxf5 {[%clk 0:01:08]}  Ng5 {[%clk 0:01:46]} 22. h4 {[%clk 0:01:07]}  c6 {[%clk 0:01:45]} 23. hxg5 {[%clk 0:01:03]}  cxd5 {[%clk 0:01:44]} 24. exd5 {[%clk 0:01:00]}  hxg5 {[%clk 0:01:38]} 25. Rxe5 {[%clk 0:00:50]}  f6 {[%clk 0:01:37]} 26. Re4 {[%clk 0:00:46]}  f5 {[%clk 0:01:34]} 27. Re5 {[%clk 0:00:43]}  f4 {[%clk 0:01:30]} 28. Rae1 {[%clk 0:00:39]}  Rxe5 {[%clk 0:01:27]} 29. Rxe5 {[%clk 0:00:37]}  f3+ {[%clk 0:01:28]} 30. Kf2 {[%clk 0:00:37]}  g4 {[%clk 0:01:29]} 31. Rg5 {[%clk 0:00:32]}  Re8 {[%clk 0:01:24]} 32. Rxg4 {[%clk 0:00:32]}  b5 {[%clk 0:01:22]} 33. axb5 {[%clk 0:00:31]}  axb5 {[%clk 0:01:22]} 34. Ne3 {[%clk 0:00:29]}  Nf7 {[%clk 0:01:22]} 35. Re4 {[%clk 0:00:28]}  Ra8 {[%clk 0:01:22]} 36. Re7 {[%clk 0:00:24]}  Ra2 {[%clk 0:01:23]} 37. Kxf3 {[%clk 0:00:23]}  Rxb2 {[%clk 0:01:24]} 38. Re8+ {[%clk 0:00:22]}  Kh7 {[%clk 0:01:23]} 39. Re6 {[%clk 0:00:22]}  Rd2 {[%clk 0:01:22]} 40. d4 {[%clk 0:00:19]}  b4 {[%clk 0:01:22]} 41. cxb4 {[%clk 0:00:15]}  Rxd4 {[%clk 0:01:23]} 42. Re4 {[%clk 0:00:15]}  Ng5+ {[%clk 0:01:20]} 43. Ke2 {[%clk 0:00:10]}  Nxe4 {[%clk 0:01:20]} 44. b5 {[%clk 0:00:11]}  Rb4 {[%clk 0:01:20]} 45. Kd3 {[%clk 0:00:11]}  Nd6 {[%clk 0:01:19]} 46. g4 {[%clk 0:00:09]}  Rxb5 {[%clk 0:01:19]} 47. Kd4 {[%clk 0:00:08]}  Rb4+ {[%clk 0:01:20]} 48. Kc5 {[%clk 0:00:08]}  Rb3 {[%clk 0:01:18]} 49. Kxd6 {[%clk 0:00:08]}  Rxe3 {[%clk 0:01:19]} 50. Kc7 {[%clk 0:00:08]}  Kg6 {[%clk 0:01:19]} 51. d6 {[%clk 0:00:08]}  Kg5 {[%clk 0:01:20]} 52. d7 {[%clk 0:00:09]}  Rc3+ {[%clk 0:01:20]} 53. Kb8 {[%clk 0:00:08]}  Rd3 {[%clk 0:01:20]} 54. Kc7 {[%clk 0:00:08]}  Kxg4 {[%clk 0:01:21]} 55. d8=Q {[%clk 0:00:08]}  Rxd8 {[%clk 0:01:22]} 56. Kxd8 {[%clk 0:00:09]}  g5 {[%clk 0:01:23]} 57. Kd7 {[%clk 0:00:10]}  Kf3 {[%clk 0:01:23]} 58. Ke6 {[%clk 0:00:11]}  g4 {[%clk 0:01:24]} 59. Kf5 {[%clk 0:00:11]}  g3 {[%clk 0:01:25]} 60. Ke5 {[%clk 0:00:12]}  g2 {[%clk 0:01:26]} 61. Kd4 {[%clk 0:00:13]}  g1=Q+ {[%clk 0:01:27]} 62. Ke5 {[%clk 0:00:14]}  Qe3+ {[%clk 0:01:27]} 63. Kd5 {[%clk 0:00:15]}  Qc3 {[%clk 0:01:27]} 64. Kd6 {[%clk 0:00:15]}  Ke4 {[%clk 0:01:28]} 65. Ke6 {[%clk 0:00:16]}  Kf4 {[%clk 0:01:28]} 66. Ke7 {[%clk 0:00:16]}  Kf5 {[%clk 0:01:28]} 67. Kd6 {[%clk 0:00:17]}  Qc4 {[%clk 0:01:28]} 68. Kd7 {[%clk 0:00:18]}  Qa6 {[%clk 0:01:28]} 69. Ke8 {[%clk 0:00:18]}  Ke5 {[%clk 0:01:29]} 70. Ke7 {[%clk 0:00:18]}  Kd5 {[%clk 0:01:30]} 71. Kf7 {[%clk 0:00:18]}  Ke5 {[%clk 0:01:30]} 72. Kg7 {[%clk 0:00:18]}  Qf6+ {[%clk 0:01:29]} 73. Kh7 {[%clk 0:00:18]}  Qg5 {[%clk 0:01:29]} 74. Kh8 {[%clk 0:00:19]}  Ke6 {[%clk 0:01:30]} 75. Kh7 {[%clk 0:00:17]}  Kf7 {[%clk 0:01:30]} 0-1


[Site "https://www.chess.com"]

[Event "Titled Tuesday Blitz August 1 Early 2023"]
[White "Eynullayev, Atilla"]
[Black "Slavin, Alexey"]
[WhiteFideId "13413570"]
[BlackFideId "24104388"]
[WhiteElo "2510"]
[BlackElo "2359"]
[Result "0-1"]
[Round "5"]
[TimeControl "180+1"]
[Date "2023.08.01"]
[WhiteClock "0:00:06"]
[BlackClock "0:00:16"]
[Board "161"]

1. d4 {[%clk 0:03:00]}  Nc6 {[%clk 0:02:59]} 2. Nf3 {[%clk 0:02:54]}  d6 {[%clk 0:02:58]} 3. e4 {[%clk 0:02:48]}  Bg4 {[%clk 0:02:58]} 4. Be2 {[%clk 0:02:48]}  e5 {[%clk 0:02:57]} 5. c3 {[%clk 0:02:48]}  Nf6 {[%clk 0:02:57]} 6. Nbd2 {[%clk 0:02:47]}  Be7 {[%clk 0:02:55]} 7. d5 {[%clk 0:02:44]}  Nb8 {[%clk 0:02:54]} 8. Qb3 {[%clk 0:02:42]}  Qc8 {[%clk 0:02:53]} 9. h3 {[%clk 0:02:39]}  Bh5 {[%clk 0:02:52]} 10. a4 {[%clk 0:02:27]}  a6 {[%clk 0:02:51]} 11. a5 {[%clk 0:02:27]}  O-O {[%clk 0:02:49]} 12. O-O {[%clk 0:02:26]}  Nbd7 {[%clk 0:02:48]} 13. Qc2 {[%clk 0:02:19]}  h6 {[%clk 0:02:45]} 14. c4 {[%clk 0:02:16]}  Bg6 {[%clk 0:02:44]} 15. b4 {[%clk 0:02:14]}  c6 {[%clk 0:02:42]} 16. Bd3 {[%clk 0:02:06]}  cxd5 {[%clk 0:02:26]} 17. exd5 {[%clk 0:02:06]}  Bxd3 {[%clk 0:02:20]} 18. Qxd3 {[%clk 0:02:06]}  Re8 {[%clk 0:02:10]} 19. Re1 {[%clk 0:01:55]}  Nf8 {[%clk 0:02:09]} 20. Bb2 {[%clk 0:01:10]}  Ng6 {[%clk 0:02:08]} 21. Rac1 {[%clk 0:01:10]}  Bf8 {[%clk 0:02:02]} 22. Ne4 {[%clk 0:01:07]}  Nxe4 {[%clk 0:02:01]} 23. Qxe4 {[%clk 0:01:05]}  f5 {[%clk 0:02:00]} 24. Qc2 {[%clk 0:00:56]}  Qd7 {[%clk 0:01:55]} 25. c5 {[%clk 0:00:53]}  dxc5 {[%clk 0:01:54]} 26. bxc5 {[%clk 0:00:53]}  Qxd5 {[%clk 0:01:50]} 27. Qxf5 {[%clk 0:00:52]}  Nf4 {[%clk 0:01:34]} 28. Rcd1 {[%clk 0:00:26]}  Qxc5 {[%clk 0:01:16]} 29. Bxe5 {[%clk 0:00:26]}  Nd5 {[%clk 0:01:00]} 30. Bxg7 {[%clk 0:00:12]}  Rxe1+ {[%clk 0:00:57]} 31. Nxe1 {[%clk 0:00:12]}  Bxg7 {[%clk 0:00:47]} 32. Qxd5+ {[%clk 0:00:13]}  Qxd5 {[%clk 0:00:46]} 33. Rxd5 {[%clk 0:00:14]}  Rc8 {[%clk 0:00:37]} 34. Nd3 {[%clk 0:00:14]}  Rc6 {[%clk 0:00:30]} 35. f4 {[%clk 0:00:12]}  b6 {[%clk 0:00:30]} 36. axb6 {[%clk 0:00:12]}  Rxb6 {[%clk 0:00:30]} 37. g4 {[%clk 0:00:13]}  Rb5 {[%clk 0:00:29]} 38. Rd8+ {[%clk 0:00:10]}  Kh7 {[%clk 0:00:26]} 39. Kf2 {[%clk 0:00:10]}  a5 {[%clk 0:00:26]} 40. Ra8 {[%clk 0:00:11]}  Bc3 {[%clk 0:00:20]} 41. Ra7+ {[%clk 0:00:10]}  Kg6 {[%clk 0:00:18]} 42. h4 {[%clk 0:00:10]}  Kf6 {[%clk 0:00:18]} 43. h5 {[%clk 0:00:10]}  Bd4+ {[%clk 0:00:15]} 44. Kf3 {[%clk 0:00:06]}  Bxa7 {[%clk 0:00:16]} 0-1


[Site "https://www.chess.com"]

[Event "Titled Tuesday Blitz August 1 Early 2023"]
[White "Jegorovas, Aleksandras"]
[Black "NicolaiMaxime"]
[WhiteFideId "12801950"]
[WhiteElo "2351"]
[BlackElo "2495"]
[Result "1-0"]
[Round "5"]
[TimeControl "180+1"]
[Date "2023.08.01"]
[WhiteClock "0:02:00"]
[BlackClock "0:00:24"]
[Board "163"]

1. d4 {[%clk 0:03:00]}  Nf6 {[%clk 0:02:59]} 2. Bf4 {[%clk 0:02:59]}  Nc6 {[%clk 0:02:59]} 3. d5 {[%clk 0:02:55]}  e5 {[%clk 0:02:58]} 4. Bg5 {[%clk 0:02:48]}  Ne7 {[%clk 0:02:31]} 5. Bxf6 {[%clk 0:02:46]}  gxf6 {[%clk 0:02:32]} 6. c4 {[%clk 0:02:46]}  d6 {[%clk 0:02:32]} 7. Nc3 {[%clk 0:02:46]}  f5 {[%clk 0:02:31]} 8. g3 {[%clk 0:02:45]}  Bh6 {[%clk 0:02:31]} 9. Bg2 {[%clk 0:02:46]}  Ng6 {[%clk 0:02:30]} 10. e3 {[%clk 0:02:47]}  Bd7 {[%clk 0:02:28]} 11. Nge2 {[%clk 0:02:48]}  Qf6 {[%clk 0:02:27]} 12. f4 {[%clk 0:02:48]}  e4 {[%clk 0:02:22]} 13. Nd4 {[%clk 0:02:47]}  c5 {[%clk 0:02:19]} 14. dxc6 {[%clk 0:02:46]}  bxc6 {[%clk 0:02:20]} 15. O-O {[%clk 0:02:39]}  Bg7 {[%clk 0:02:19]} 16. b4 {[%clk 0:02:37]}  c5 {[%clk 0:02:03]} 17. Nd5 {[%clk 0:02:35]}  Qd8 {[%clk 0:02:03]} 18. Nb5 {[%clk 0:02:28]}  Bxb5 {[%clk 0:02:01]} 19. cxb5 {[%clk 0:02:28]}  O-O {[%clk 0:01:46]} 20. bxc5 {[%clk 0:02:27]}  dxc5 {[%clk 0:01:44]} 21. Rc1 {[%clk 0:02:23]}  Rc8 {[%clk 0:01:37]} 22. Qb3 {[%clk 0:02:16]}  Ne7 {[%clk 0:01:33]} 23. Rfd1 {[%clk 0:02:15]}  Nxd5 {[%clk 0:01:29]} 24. Rxd5 {[%clk 0:02:15]}  Qb6 {[%clk 0:01:26]} 25. Qc4 {[%clk 0:02:12]}  Qe6 {[%clk 0:00:52]} 26. Bh3 {[%clk 0:02:09]}  Rfd8 {[%clk 0:00:43]} 27. Rcd1 {[%clk 0:02:09]}  Rxd5 {[%clk 0:00:41]} 28. Rxd5 {[%clk 0:02:09]}  Qf6 {[%clk 0:00:30]} 29. Bxf5 {[%clk 0:02:06]}  Qa1+ {[%clk 0:00:30]} 30. Kg2 {[%clk 0:02:06]}  Qb2+ {[%clk 0:00:30]} 31. Kh3 {[%clk 0:02:06]}  Qb4 {[%clk 0:00:21]} 32. Qxb4 {[%clk 0:02:01]}  cxb4 {[%clk 0:00:22]} 33. Bxc8 {[%clk 0:02:01]}  a5 {[%clk 0:00:20]} 34. b6 {[%clk 0:02:00]}  a4 {[%clk 0:00:21]} 35. b7 {[%clk 0:02:01]}  b3 {[%clk 0:00:22]} 36. b8=Q {[%clk 0:02:01]}  bxa2 {[%clk 0:00:22]} 37. Rd8+ {[%clk 0:01:58]}  Bf8 {[%clk 0:00:22]} 38. Rxf8+ {[%clk 0:01:58]}  Kxf8 {[%clk 0:00:22]} 39. Be6+ {[%clk 0:01:59]}  Kg7 {[%clk 0:00:23]} 40. Bxa2 {[%clk 0:02:00]}  a3 {[%clk 0:00:23]} 41. Qe5+ {[%clk 0:01:59]}  f6 {[%clk 0:00:23]} 42. Qe7+ {[%clk 0:02:00]}  Kh6 {[%clk 0:00:24]} 43. Qxf6+ {[%clk 0:02:00]}  Kh5 {[%clk 0:00:24]} 44. g4# {[%clk 0:02:00]} 1-0


[Site "https://www.chess.com"]

[Event "Titled Tuesday Blitz August 1 Early 2023"]
[White "Tikhonov, Viacheslav"]
[Black "Goswami, Vedant"]
[WhiteFideId "44196407"]
[BlackFideId "5003725"]
[WhiteElo "2494"]
[BlackElo "2350"]
[Result "1-0"]
[Round "5"]
[TimeControl "180+1"]
[Date "2023.08.01"]
[WhiteClock "0:00:07"]
[BlackClock "0:00:00"]
[Board "164"]

1. d4 {[%clk 0:02:53]}  Nf6 {[%clk 0:02:54]} 2. Bf4 {[%clk 0:02:53]}  Nh5 {[%clk 0:02:52]} 3. Be5 {[%clk 0:02:47]}  d6 {[%clk 0:02:50]} 4. Bg3 {[%clk 0:02:39]}  Nxg3 {[%clk 0:02:46]} 5. hxg3 {[%clk 0:02:40]}  c5 {[%clk 0:02:43]} 6. dxc5 {[%clk 0:02:35]}  Qa5+ {[%clk 0:02:41]} 7. Nd2 {[%clk 0:02:34]}  Qxc5 {[%clk 0:02:39]} 8. Ngf3 {[%clk 0:02:34]}  Nc6 {[%clk 0:02:37]} 9. e4 {[%clk 0:02:34]}  g6 {[%clk 0:02:31]} 10. c3 {[%clk 0:02:33]}  Bg7 {[%clk 0:02:27]} 11. Bd3 {[%clk 0:02:33]}  b5 {[%clk 0:02:16]} 12. Qe2 {[%clk 0:02:31]}  b4 {[%clk 0:02:06]} 13. O-O {[%clk 0:02:25]}  bxc3 {[%clk 0:02:05]} 14. bxc3 {[%clk 0:02:25]}  O-O {[%clk 0:02:00]} 15. Nb3 {[%clk 0:02:21]}  Qh5 {[%clk 0:01:55]} 16. Nbd4 {[%clk 0:02:16]}  Bd7 {[%clk 0:01:43]} 17. Rab1 {[%clk 0:02:07]}  Rab8 {[%clk 0:01:40]} 18. Rb3 {[%clk 0:01:58]}  Rxb3 {[%clk 0:01:29]} 19. axb3 {[%clk 0:01:59]}  Qc5 {[%clk 0:01:28]} 20. Nb5 {[%clk 0:01:10]}  a6 {[%clk 0:01:16]} 21. b4 {[%clk 0:01:10]}  Qb6 {[%clk 0:01:15]} 22. Nbd4 {[%clk 0:01:03]}  Nxd4 {[%clk 0:01:13]} 23. Nxd4 {[%clk 0:01:03]}  Bxd4 {[%clk 0:01:13]} 24. cxd4 {[%clk 0:01:03]}  Qxd4 {[%clk 0:01:13]} 25. Bxa6 {[%clk 0:00:58]}  Qxb4 {[%clk 0:01:13]} 26. Rd1 {[%clk 0:00:50]}  Be6 {[%clk 0:01:07]} 27. e5 {[%clk 0:00:47]}  d5 {[%clk 0:01:01]} 28. Qe3 {[%clk 0:00:46]}  Ra8 {[%clk 0:00:53]} 29. Bf1 {[%clk 0:00:45]}  Kg7 {[%clk 0:00:46]} 30. Rd4 {[%clk 0:00:43]}  Qb2 {[%clk 0:00:29]} 31. Rh4 {[%clk 0:00:42]}  h5 {[%clk 0:00:26]} 32. Qg5 {[%clk 0:00:42]}  Rh8 {[%clk 0:00:21]} 33. Bd3 {[%clk 0:00:24]}  Qa1+ {[%clk 0:00:18]} 34. Kh2 {[%clk 0:00:24]}  Qc3 {[%clk 0:00:17]} 35. Bb1 {[%clk 0:00:19]}  Qc5 {[%clk 0:00:14]} 36. f4 {[%clk 0:00:17]}  Qb4 {[%clk 0:00:09]} 37. f5 {[%clk 0:00:13]}  Qxb1 {[%clk 0:00:09]} 38. fxe6 {[%clk 0:00:11]}  fxe6 {[%clk 0:00:08]} 39. Qxe7+ {[%clk 0:00:12]}  Kh6 {[%clk 0:00:08]} 40. Qxe6 {[%clk 0:00:10]}  Qf5 {[%clk 0:00:06]} 41. Qxd5 {[%clk 0:00:10]}  Re8 {[%clk 0:00:06]} 42. Qd2+ {[%clk 0:00:10]}  Kg7 {[%clk 0:00:05]} 43. Rf4 {[%clk 0:00:09]}  Qxe5 {[%clk 0:00:05]} 44. Qd7+ {[%clk 0:00:09]}  Re7 {[%clk 0:00:04]} 45. Qd8 {[%clk 0:00:10]}  Re8 {[%clk 0:00:03]} 46. Qd7+ {[%clk 0:00:10]}  Re7 {[%clk 0:00:03]} 47. Qd2 {[%clk 0:00:11]}  g5 {[%clk 0:00:02]} 48. Rf3 {[%clk 0:00:10]}  h4 {[%clk 0:00:02]} 49. Qf2 {[%clk 0:00:08]}  hxg3+ {[%clk 0:00:02]} 50. Rxg3 {[%clk 0:00:09]}  Rf7 {[%clk 0:00:02]} 51. Qd2 {[%clk 0:00:07]}  Rf4 {[%clk 0:00:02]} 52. Qd7+ {[%clk 0:00:07]}  Rf7 {[%clk 0:00:00]} 53. Qg4 {[%clk 0:00:07]} 1-0


[Site "https://www.chess.com"]

[Event "Titled Tuesday Blitz August 1 Early 2023"]
[White "Gueci, Tea"]
[Black "Kiremitciyan, Ari"]
[WhiteFideId "872342"]
[BlackFideId "6373445"]
[WhiteElo "2334"]
[BlackElo "2490"]
[Result "1/2-1/2"]
[Round "5"]
[TimeControl "180+1"]
[Date "2023.08.01"]
[WhiteClock "0:00:15"]
[BlackClock "0:00:03"]
[Board "165"]

1. e4 {[%clk 0:03:00]}  c6 {[%clk 0:03:00]} 2. d4 {[%clk 0:02:59]}  d5 {[%clk 0:03:01]} 3. e5 {[%clk 0:03:00]}  Bf5 {[%clk 0:03:00]} 4. h4 {[%clk 0:03:00]}  h5 {[%clk 0:03:00]} 5. c4 {[%clk 0:02:59]}  e6 {[%clk 0:02:59]} 6. Nc3 {[%clk 0:02:59]}  Ne7 {[%clk 0:02:56]} 7. Bg5 {[%clk 0:02:56]}  Qb6 {[%clk 0:02:41]} 8. Qd2 {[%clk 0:02:48]}  Nd7 {[%clk 0:02:39]} 9. Nf3 {[%clk 0:02:42]}  Bg4 {[%clk 0:02:38]} 10. cxd5 {[%clk 0:02:37]}  Nxd5 {[%clk 0:02:35]} 11. Be2 {[%clk 0:02:28]}  f6 {[%clk 0:01:29]} 12. exf6 {[%clk 0:02:16]}  gxf6 {[%clk 0:01:29]} 13. Bf4 {[%clk 0:02:09]}  Nxf4 {[%clk 0:01:22]} 14. Qxf4 {[%clk 0:02:09]}  Qxb2 {[%clk 0:01:16]} 15. Rc1 {[%clk 0:02:04]}  Bh6 {[%clk 0:01:09]} 16. Ng5 {[%clk 0:01:51]}  fxg5 {[%clk 0:00:57]} 17. hxg5 {[%clk 0:01:47]}  Bxe2 {[%clk 0:00:23]} 18. Nxe2 {[%clk 0:01:37]}  Rf8 {[%clk 0:00:20]} 19. Qe3 {[%clk 0:01:26]}  Bg7 {[%clk 0:00:17]} 20. Qxe6+ {[%clk 0:01:16]}  Kd8 {[%clk 0:00:18]} 21. O-O {[%clk 0:01:12]}  Re8 {[%clk 0:00:16]} 22. Qg6 {[%clk 0:01:08]}  Qxe2 {[%clk 0:00:11]} 23. Qxg7 {[%clk 0:01:05]}  Qe7 {[%clk 0:00:11]} 24. Qg6 {[%clk 0:00:59]}  Kc7 {[%clk 0:00:11]} 25. d5 {[%clk 0:00:49]}  Qd6 {[%clk 0:00:08]} 26. Qd3 {[%clk 0:00:34]}  Ne5 {[%clk 0:00:07]} 27. Qb3 {[%clk 0:00:29]}  Rad8 {[%clk 0:00:05]} 28. dxc6 {[%clk 0:00:29]}  Nxc6 {[%clk 0:00:06]} 29. Rfd1 {[%clk 0:00:23]}  Qe5 {[%clk 0:00:04]} 30. Qf7+ {[%clk 0:00:17]}  Re7 {[%clk 0:00:03]} 31. Qg6 {[%clk 0:00:10]}  Rxd1+ {[%clk 0:00:04]} 32. Rxd1 {[%clk 0:00:11]}  Rg7 {[%clk 0:00:03]} 33. Qc2 {[%clk 0:00:10]}  Qxg5 {[%clk 0:00:03]} 34. g3 {[%clk 0:00:10]}  h4 {[%clk 0:00:03]} 35. Rd3 {[%clk 0:00:10]}  hxg3 {[%clk 0:00:03]} 36. Rxg3 {[%clk 0:00:11]}  Qf6 {[%clk 0:00:04]} 37. Qe4 {[%clk 0:00:10]}  Rxg3+ {[%clk 0:00:04]} 38. fxg3 {[%clk 0:00:11]}  Qd4+ {[%clk 0:00:04]} 39. Qxd4 {[%clk 0:00:11]}  Nxd4 {[%clk 0:00:04]} 40. Kf2 {[%clk 0:00:12]}  Ne6 {[%clk 0:00:05]} 41. Kf3 {[%clk 0:00:12]}  Ng7 {[%clk 0:00:06]} 42. Ke4 {[%clk 0:00:13]}  b5 {[%clk 0:00:06]} 43. Ke5 {[%clk 0:00:14]}  Kd7 {[%clk 0:00:05]} 44. g4 {[%clk 0:00:14]}  Ke7 {[%clk 0:00:02]} 45. Kd5 {[%clk 0:00:14]}  a6 {[%clk 0:00:02]} 46. Kc5 {[%clk 0:00:15]}  Ne6+ {[%clk 0:00:03]} 47. Kb6 {[%clk 0:00:14]}  Nd4 {[%clk 0:00:02]} 48. Kxa6 {[%clk 0:00:15]}  Kf6 {[%clk 0:00:03]} 49. Ka5 {[%clk 0:00:15]}  Kg5 {[%clk 0:00:04]} 50. a4 {[%clk 0:00:14]}  bxa4 {[%clk 0:00:03]} 51. Kxa4 {[%clk 0:00:15]}  Kxg4 {[%clk 0:00:03]} 1/2-1/2


[Site "https://www.chess.com"]